[Event "Paracin Open 2020"]
[Site "Paracin"]
[Date "2020.07.08"]
[Round "7.13"]
[White "Stankovic, Boris"]
[Black "Mitev, Valentin"]
[Result "0-1"]
[ECO "B50"]
[WhiteElo "2119"]
[BlackElo "2240"]
[Annotator "ChessBase"]
[PlyCount "78"]
[EventDate "2020.07.03"]
[EventType "swiss"]
[EventCountry "SRB"]
[SourceTitle "playchess.com"]
[Source "ChessBase"]
[SourceQuality "1"]
[TimeControl "5400+30"]

1. e4 {[%emt 0:00:00]} c5 {[%emt 0:00:00]} 2. Nf3 {[%emt 0:00:00]} d6 {[%emt 0:00:22]} 3. c3 {[%emt 0:00:12]} Nf6 {[%emt 0:00:09]} 4. Be2 {[%emt 0:00:08]} g6 {[%emt 0:00:29]} 5. O-O {[%emt 0:00:23]} Bg7 {[%emt 0:00:04]} 6. Re1 {[%emt 0:00:26]} O-O {[%emt 0:00:07]} 7. Bf1 {[%emt 0:00:29]} Nc6 {[%emt 0:00:02]} 8. h3 {[%emt 0:02:22]} e5 {[%emt 0:00:08]} 9. d3 {[%emt 0:00:26]} d5 {[%emt 0:00:35]} 10. Nbd2 {[%emt 0:00:33]} h6 {[%emt 0:03:39]} 11. g3 {[%emt 0:11:56]} Be6 {[%emt 0:01:11]} 12. Bg2 {[%emt 0:06:07]} Qd7 {[%emt 0:00:27]} 13. Kh2 {[%emt 0:00:16]} Rad8 {[%emt 0:00:59]} 14. Qc2 {[%emt 0:05:43]} Rfe8 {[%emt 0:00:24]} 15. a3 {[%emt 0:01:15]} a5 {[%emt 0:03:05]} 16. exd5 {[%emt 0:29:53]} Nxd5 {[%emt 0:03:51]} 17. Nc4 {[%emt 0:00:29]} Qc7 {[%emt 0:01:13]} 18. Be3 {[%emt 0:12:21]} b5 {[%emt 0:04:54]} 19. Ncd2 {[%emt 0:00:35]} Qb6 {[%emt 0:09:15]} 20. Ne4 {[%emt 0:07:56]} Nxe3 {[%emt 0:00:12]} 21. fxe3 {[%emt 0:00:06]} f5 {[%emt 0:00:09]} 22. Nf2 {[%emt 0:00:37]} a4 {[%emt 0:00:50]} 23. Nd2 {[%emt 0:04:30]} Na5 {[%emt 0:01:12]} 24. c4 {[%emt 0:01:05]} bxc4 {[%emt 0:00:53]} 25. Qxa4 {[%emt 0:05:22]} e4 {[%emt 0:02:58]} 26. dxe4 {[%emt 0:02:09]} Bxb2 {[%emt 0:00:15]} 27. exf5 {[%emt 0:00:21]} Bxa1 {[%emt 0:05:46]} 28. fxe6 {[%emt 0:00:06]} Be5 {[%emt 0:31:32]} 29. Nxc4 {[%emt 0:03:01]} Nxc4 {[%emt 0:11:13]} 30. Qxc4 {[%emt 0:00:02]} Qxe6 {[%emt 0:00:03]} 31. Qxc5 {[%emt 0:00:58]} Bd6 {[%emt 0:00:05]} 32. Qc3 {[%emt 0:00:39]} Bxg3+ {[%emt 0:03:13]} 33. Kg1 {[%emt 0:00:21]} h5 {[%emt 0:06:03]} 34. a4 {[%emt 0:01:23]} Qa2 {[%emt 0:03:40]} 35. Rf1 {[%emt 0:02:00]} Rf8 {[%emt 0:00:12]} 36. Qc6 {[%emt 0:01:16]} Rd6 {[%emt 0:01:07]} 37. Qb5 {[%emt 0:01:40]} Rxf2 {[%emt 0:02:03]} 38. Qe8+ Kg7 39. Qe7+ {[%emt 0:01:12]} Qf7 {[%emt 0:00:04]} 0-1

[Event "Paracin Open 2020"]
[Site "Paracin"]
[Date "2020.07.09"]
[Round "8.3"]
[White "Ivanovic, Marko"]
[Black "Todorovic, Nenad I"]
[Result "1-0"]
[ECO "A46"]
[WhiteElo "2267"]
[BlackElo "2295"]
[Annotator "ChessBase"]
[PlyCount "57"]
[EventDate "2020.07.03"]
[EventType "swiss"]
[EventCountry "SRB"]
[SourceTitle "playchess.com"]
[Source "ChessBase"]
[SourceQuality "1"]
[TimeControl "5400+30"]

1. d4 {[%emt 0:00:00]} Nf6 {[%emt 0:00:21]} 2. Nf3 {[%emt 0:00:09]} e6 {[%emt 0:00:05]} 3. Bg5 {[%emt 0:00:06]} c5 {[%emt 0:00:50]} 4. e3 {[%emt 0:00:08]} Be7 {[%emt 0:07:43]} 5. Nbd2 {[%emt 0:00:23]} cxd4 {[%emt 0:01:45]} 6. exd4 {[%emt 0:00:11]} O-O {[%emt 0:01:44]} 7. c3 {[%emt 0:00:42]} b6 {[%emt 0:00:35]} 8. Bd3 {[%emt 0:00:11]} Bb7 {[%emt 0:00:10]} 9. Qe2 {[%emt 0:01:16]} d6 {[%emt 0:02:13]} 10. Bxf6 {[%emt 0:00:06]} Bxf6 {[%emt 0:00:21]} 11. h4 {[%emt 0:00:04]} g6 {[%emt 0:41:28]} 12. h5 {[%emt 0:03:38]} Nd7 {[%emt 0:15:28]} 13. hxg6 {[%emt 0:01:30]} hxg6 {[%emt 0:00:10]} 14. O-O-O {[%emt 0:07:39]} e5 {[%emt 0:01:17]} 15. dxe5 {[%emt 0:10:25]} Nxe5 {[%emt 0:01:40]} 16. Be4 {[%emt 0:02:11]} Nxf3 {[%emt 0:07:47]} 17. Qxf3 {[%emt 0:03:24]} d5 {[%emt 0:06:13]} 18. Qh3 {[%emt 0:00:15]} Re8 {[%emt 0:00:39]} 19. Bxg6 {[%emt 0:00:05]} fxg6 {[%emt 0:00:26]} 20. Qh7+ {[%emt 0:00:04]} Kf8 {[%emt 0:00:04]} 21. Qxb7 {[%emt 0:00:04]} Re7 {[%emt 0:01:36]} 22. Qc6 {[%emt 0:03:04]} Rc7 {[%emt 0:05:51]} 23. Qb5 {[%emt 0:02:02]} Qd7 {[%emt 0:01:49]} 24. Qd3 {[%emt 0:02:19]} Rac8 {[%emt 0:00:57]} 25. Kb1 {[%emt 0:01:28]} Qg4 {[%emt 0:00:46]} 26. Qxd5 {[%emt 0:03:12]} Rc5 {[%emt 0:00:30]} 27. Qf3 {[%emt 0:00:47]} Qf5+ {[%emt 0:00:30]} 28. Qxf5 {[%emt 0:00:13]} Rxf5 {[%emt 0:00:01]} 29. Ne4 {[%emt 0:00:13]} 1-0

[Event "Paracin Open 2020"]
[Site "Paracin"]
[Date "2020.07.09"]
[Round "8.6"]
[White "Mitev, Valentin"]
[Black "Sredojevic, Ivan"]
[Result "0-1"]
[ECO "E71"]
[WhiteElo "2240"]
[BlackElo "2239"]
[Annotator "ChessBase"]
[PlyCount "92"]
[EventDate "2020.07.03"]
[EventType "swiss"]
[EventCountry "SRB"]
[SourceTitle "playchess.com"]
[Source "ChessBase"]
[SourceQuality "1"]
[TimeControl "5400+30"]

1. d4 d6 2. c4 Nf6 3. Nc3 g6 4. e4 Bg7 5. h3 O-O 6. Be3 e5 7. d5 a5 8. g4 Na6 9. f3 Nd7 10. h4 Bf6 11. g5 Be7 12. Qd2 h5 13. Nh3 Ndc5 14. Nf2 Nb4 15. Bh3 Bxh3 16. Rxh3 Qd7 17. Rg3 Kh7 18. Ke2 Nba6 19. Rag1 a4 20. f4 exf4 21. Bxf4 a3 22. b3 Rfe8 23. Nb5 Bf8 24. Re3 Bg7 25. Kd1 Qe7 26. Rge1 Nd7 27. Nd3 Ne5 28. Nxe5 Bxe5 29. Qh2 Qd7 30. Rf1 Bg7 31. Qg3 Nb4 32. Nxc7 Qxc7 33. Bxd6 Qb6 34. c5 Qb5 35. Rxf7 Kg8 36. Qf4 Bd4 37. Rf6 Bxf6 38. gxf6 Kf7 39. Be7 Rad8 40. Qf3 Rd7 41. Kc1 Rexe7 42. fxe7+ Kxe7 43. d6+ Ke8 44. Kd2 Qxc5 45. e5 Qc2+ 46. Ke1 Rf7 0-1

[Event "Paracin Open 2020"]
[Site "Paracin"]
[Date "2020.07.09"]
[Round "8.11"]
[White "Durak, Can"]
[Black "Pasti, Aron"]
[Result "0-1"]
[ECO "D35"]
[WhiteElo "1847"]
[BlackElo "2325"]
[Annotator "RC"]
[PlyCount "104"]
[EventDate "2020.07.03"]
[EventType "swiss"]
[EventCountry "SRB"]
[SourceTitle "playchess.com"]
[Source "ChessBase"]
[SourceQuality "1"]
[TimeControl "5400+30"]

1. d4 {[%emt 0:00:19]} d5 {[%emt 0:00:00]} 2. c4 {[%emt 0:00:48]} e6 {[%emt 0:00:00]} 3. Nc3 {[%emt 0:01:00]} Nf6 {[%emt 0:00:00]} 4. cxd5 {[%emt 0:01:27]} exd5 {[%emt 0:00:53]} 5. Bg5 {[%emt 0:01:01]} Be7 {[%emt 0:00:04]} 6. e3 {[%emt 0:01:35]} O-O {[%emt 0:00:05]} 7. Bd3 {[%emt 0:01:26]} Re8 {[%emt 0:00:08]} 8. Qc2 {[%emt 0:01:32]} h6 {[%emt 0:00:04]} 9. Bh4 {[%emt 0:02:22]} c5 {[%emt 0:00:30]} 10. Nge2 {[%emt 0:05:02]} c4 {[%emt 0:00:47]} 11. Bf5 {[%emt 0:00:47]} Nc6 {[%emt 0:00:02]} 12. a3 {[%emt 0:01:35]} a6 {[%emt 0:08:21]} 13. O-O {[%emt 0:03:07]} Nh5 {[%emt 0:00:08]} 14. Bg3 {[%emt 0:03:24]} Nxg3 {[%emt 0:03:05]} 15. hxg3 {[%emt 0:00:36]} Bg5 {[%emt 0:03:30]} 16. Bxc8 {[%emt 0:05:50]} Rxc8 {[%emt 0:00:15]} 17. Qf5 {[%emt 0:00:07]} Ne7 {[%emt 0:01:34]} 18. Qf3 {[%emt 0:00:09]} Qd7 {[%emt 0:02:56]} 19. b3 {[%emt 0:05:06]} b5 {[%emt 0:08:50]} 20. b4 {[%emt 0:01:54]} Red8 {[%emt 0:03:05]} 21. a4 {[%emt 0:02:36]} Ra8 {[%emt 0:11:45]} 22. Rfb1 {[%emt 0:01:40]} Qb7 {[%emt 0:03:35]} 23. Ra2 {[%emt 0:03:11]} Kf8 {[%emt 0:14:50]} 24. Rba1 {[%emt 0:06:09]} bxa4 {[%emt 0:07:28]} 25. Rxa4 {[%emt 0:00:16]} Kg8 {[%emt 0:00:19]} 26. Rb1 {[%emt 0:02:13]} Rd6 {[%emt 0:12:19]} 27. Ra5 {[%emt 0:01:55]} Rf6 {[%emt 0:01:26]} 28. Nf4 {[%emt 0:03:10]} Bxf4 {[%emt 0:00:10]} 29. gxf4 {[%emt 0:00:11]} Rd6 {[%emt 0:01:40]} 30. Kh2 {[%emt 0:00:38]} Rb8 {[%emt 0:09:36]} 31. Na4 {[%emt 0:03:07]} Qc8 {[%emt 0:01:22]} 32. Qh3 {[%emt 0:02:27]} f5 {[%emt 0:00:36]} 33. Nc3 {[%emt 0:01:20]} Qd7 {[%emt 0:02:45]} 34. Qf3 {[%emt 0:00:23]} Qd8 {[%emt 0:01:21]} 35. g3 {[%emt 0:01:05]} Rxb4 {[%emt 0:00:55]} 36. Rxb4 {[%emt 0:03:54]} Qxa5 {[%emt 0:00:06]} 37. Rb7 {[%emt 0:00:05]} Qxc3 {[%emt 0:02:17]} 38. Rxe7 {[%emt 0:00:07]} Qc2 {[%emt 0:01:27]} 39. Kg2 {[%emt 0:00:23]} Kh7 {[%emt 0:00:37]} 40. Qh5 {[%emt 0:00:32]} Rg6 {[%emt 0:00:10]} 41. Re8 {[%emt 0:00:45]} Qa4 {[%emt 0:00:49]} 42. Re7 {[%emt 0:01:52]} Rf6 {[%emt 0:00:30]} 43. Rc7 {[%emt 0:01:43]} Qb5 {[%emt 0:00:32]} 44. Qf3 {[%emt 0:01:30]} Rc6 {[%emt 0:00:32]} 45. Rd7 {[%emt 0:01:06]} c3 {[%emt 0:00:10]} 46. Rxd5 {[%emt 0:00:39]} Qb1 {[%emt 0:00:28]} 47. Rd7 {[%emt 0:01:32]} Qe4 {[%emt 0:00:28]} 48. d5 {[%emt 0:00:16]} Qxf3+ {[%emt 0:00:09]} 49. Kxf3 {[%emt 0:00:06]} Rc8 {[%emt 0:00:45]} 50. d6 {[%emt 0:00:17]} c2 {[%emt 0:00:02]} 51. Rc7 {[%emt 0:00:04]} Rxc7 {[%emt 0:00:05]} 52. dxc7 {[%emt 0:00:01]} c1=Q {[%emt 0:00:11]} 0-1

[Event "Paracin Open 2020"]
[Site "Paracin"]
[Date "2020.07.09"]
[Round "8.13"]
[White "Kisic, Jovan"]
[Black "Formento, Paolo"]
[Result "1/2-1/2"]
[ECO "A06"]
[WhiteElo "1903"]
[BlackElo "2294"]
[Annotator "ChessBase"]
[PlyCount "132"]
[EventDate "2020.07.03"]
[EventType "swiss"]
[EventCountry "SRB"]
[SourceTitle "playchess.com"]
[Source "ChessBase"]
[SourceQuality "1"]
[TimeControl "5400+30"]

1. g3 {[%emt 0:00:00]} d5 {[%emt 0:05:17]} 2. Nf3 {[%emt 0:00:15]} Nf6 {[%emt 0:01:58]} 3. Bg2 {[%emt 0:00:38]} c6 {[%emt 0:00:09]} 4. O-O {[%emt 0:00:38]} Bf5 {[%emt 0:00:08]} 5. d3 {[%emt 0:00:17]} h6 {[%emt 0:00:26]} 6. Nbd2 {[%emt 0:00:25]} e6 {[%emt 0:00:20]} 7. c4 {[%emt 0:00:19]} Be7 {[%emt 0:03:36]} 8. b3 {[%emt 0:00:27]} O-O {[%emt 0:01:01]} 9. Bb2 {[%emt 0:00:15]} Nbd7 {[%emt 0:00:28]} 10. Rc1 {[%emt 0:02:56]} a5 {[%emt 0:01:56]} 11. a3 {[%emt 0:03:03]} Bh7 {[%emt 0:00:44]} 12. Nb1 {[%emt 0:05:12]} Qb6 {[%emt 0:18:50]} 13. Nbd2 {[%emt 0:04:51]} Rfe8 {[%emt 0:06:37]} 14. cxd5 {[%emt 0:11:25]} exd5 {[%emt 0:03:07]} 15. Bh3 {[%emt 0:02:45]} a4 {[%emt 0:12:52]} 16. Rb1 {[%emt 0:06:01]} axb3 {[%emt 0:02:08]} 17. Bxf6 {[%emt 0:01:34]} Nxf6 {[%emt 0:00:11]} 18. Rxb3 {[%emt 0:00:15]} Qc7 {[%emt 0:06:03]} 19. Qc1 {[%emt 0:01:58]} Nd7 {[%emt 0:08:14]} 20. d4 {[%emt 0:04:19]} Bd6 {[%emt 0:02:31]} 21. e3 {[%emt 0:01:17]} Ra7 {[%emt 0:02:27]} 22. Qb2 {[%emt 0:03:05]} b5 {[%emt 0:02:12]} 23. Bxd7 {[%emt 0:03:29]} Qxd7 {[%emt 0:00:01]} 24. Ne5 {[%emt 0:00:18]} Bxe5 {[%emt 0:03:17]} 25. dxe5 {[%emt 0:00:07]} c5 {[%emt 0:07:02]} 26. Rc1 {[%emt 0:04:02]} c4 {[%emt 0:02:20]} 27. Rxb5 {[%emt 0:00:47]} Rxa3 {[%emt 0:02:43]} 28. Rb7 {[%emt 0:03:05]} Ra2 {[%emt 0:02:09]} 29. Rxd7 {[%emt 0:00:28]} Rxb2 {[%emt 0:00:02]} 30. Rxd5 {[%emt 0:00:10]} Ra8 {[%emt 0:05:31]} 31. Rxc4 {[%emt 0:00:48]} g5 {[%emt 0:00:34]} 32. Rcd4 {[%emt 0:00:57]} Ra1+ {[%emt 0:00:13]} 33. Kg2 {[%emt 0:00:05]} Raa2 {[%emt 0:00:47]} 34. Kf3 {[%emt 0:01:22]} Bf5 {[%emt 0:00:23]} 35. g4 {[%emt 0:00:58]} Bg6 {[%emt 0:00:35]} 36. Kg3 {[%emt 0:00:40]} Ra1 {[%emt 0:00:36]} 37. h3 {[%emt 0:01:53]} Rg1+ {[%emt 0:00:23]} 38. Kh2 {[%emt 0:00:06]} Rd1 {[%emt 0:00:14]} 39. f4 {[%emt 0:01:46]} gxf4 {[%emt 0:00:40]} 40. exf4 {[%emt 0:00:08]} Be4 {[%emt 0:00:43]} 41. Rxe4 {[%emt 0:00:23]} Rbxd2+ {[%emt 0:00:02]} 42. Rxd2 {[%emt 0:00:08]} Rxd2+ {[%emt 0:00:01]} 43. Kg3 {[%emt 0:00:10]} Rd3+ {[%emt 0:00:01]} 44. Kh4 {[%emt 0:00:05]} Rf3 {[%emt 0:00:30]} 45. f5 {[%emt 0:01:20]} Kf8 {[%emt 0:00:10]} 46. e6 {[%emt 0:00:33]} Ke7 {[%emt 0:00:27]} 47. exf7+ {[%emt 0:00:12]} Kxf7 {[%emt 0:00:01]} 48. Re6 {[%emt 0:00:07]} Kg7 {[%emt 0:00:01]} 49. Re7+ {[%emt 0:00:05]} Kg8 {[%emt 0:00:27]} 50. Ra7 {[%emt 0:00:09]} Rb3 {[%emt 0:00:58]} 51. Kh5 {[%emt 0:00:11]} Rb6 {[%emt 0:00:46]} 52. h4 {[%emt 0:00:13]} Rf6 {[%emt 0:01:03]} 53. g5 {[%emt 0:00:28]} hxg5 {[%emt 0:01:03]} 54. Kxg5 {[%emt 0:00:08]} Rb6 {[%emt 0:00:05]} 55. f6 {[%emt 0:00:06]} Rb1 {[%emt 0:00:41]} 56. Kh6 {[%emt 0:01:35]} Rf1 {[%emt 0:00:32]} 57. Kg6 {[%emt 0:06:47]} Rg1+ {[%emt 0:00:04]} 58. Kf5 {[%emt 0:00:09]} Rf1+ {[%emt 0:00:08]} 59. Ke6 {[%emt 0:00:03]} Re1+ {[%emt 0:00:06]} 60. Kd6 {[%emt 0:00:11]} Rd1+ {[%emt 0:00:24]} 61. Ke7 {[%emt 0:00:06]} Re1+ {[%emt 0:00:13]} 62. Kd8 {[%emt 0:00:20]} Kf8 {[%emt 0:00:55]} 63. h5 {[%emt 0:01:17]} Rd1+ {[%emt 0:00:35]} 64. Kc8 {[%emt 0:00:21]} Rc1+ {[%emt 0:01:06]} 65. Kb8 {[%emt 0:00:17]} Rb1+ {[%emt 0:00:12]} 66. Ka8 {[%emt 0:00:03]} Rb6 {[%emt 0:02:19]} 1/2-1/2

[Event "Paracin Open 2020"]
[Site "Paracin"]
[Date "2020.07.09"]
[Round "8.16"]
[White "Ivic, Matija"]
[Black "Katic, Goran"]
[Result "1-0"]
[ECO "A40"]
[WhiteElo "2225"]
[BlackElo "1967"]
[Annotator "ChessBase"]
[PlyCount "103"]
[EventDate "2020.07.03"]
[EventType "swiss"]
[EventCountry "SRB"]
[SourceTitle "playchess.com"]
[Source "ChessBase"]
[SourceQuality "1"]
[TimeControl "5400+30"]

1. d4 {[%emt 0:00:00]} g6 {[%emt 0:04:24]} 2. c4 {[%emt 0:00:00]} Bg7 {[%emt 0:00:11]} 3. Nc3 {[%emt 0:00:00]} b6 {[%emt 0:04:36]} 4. e4 {[%emt 0:00:00]} Bb7 {[%emt 0:00:04]} 5. Bg5 {[%emt 0:00:30]} c5 {[%emt 0:01:40]} 6. d5 {[%emt 0:00:07]} d6 {[%emt 0:01:57]} 7. Qd2 {[%emt 0:00:45]} Nd7 {[%emt 0:01:01]} 8. f4 {[%emt 0:00:53]} f6 {[%emt 0:07:31]} 9. Bh4 {[%emt 0:00:07]} Nh6 {[%emt 0:00:12]} 10. Nf3 {[%emt 0:00:14]} Nf7 {[%emt 0:00:07]} 11. Bd3 {[%emt 0:00:18]} a6 {[%emt 0:00:27]} 12. O-O-O {[%emt 0:00:22]} Qc7 {[%emt 0:00:10]} 13. Kb1 {[%emt 0:00:43]} O-O-O {[%emt 0:00:11]} 14. Rhe1 {[%emt 0:00:05]} Rhe8 {[%emt 0:02:03]} 15. Bg3 {[%emt 0:00:21]} Kb8 {[%emt 0:07:39]} 16. Re2 {[%emt 0:00:15]} Ka7 {[%emt 0:00:08]} 17. Rde1 {[%emt 0:00:17]} Bc8 {[%emt 0:02:21]} 18. h3 {[%emt 0:01:24]} Bh6 19. Qc2 {[%emt 0:01:16]} Bg7 {[%emt 0:07:55]} 20. Bh2 {[%emt 0:00:19]} Bb7 {[%emt 0:00:48]} 21. Nd1 {[%emt 0:00:12]} e5 {[%emt 0:02:49]} 22. dxe6 {[%emt 0:00:20]} Rxe6 {[%emt 0:00:06]} 23. Nc3 {[%emt 0:00:04]} Re7 {[%emt 0:01:16]} 24. Qa4 {[%emt 0:03:07]} Qc6 {[%emt 0:08:46]} 25. Qa3 {[%emt 0:00:37]} Qc8 {[%emt 0:05:37]} 26. Nd2 {[%emt 0:01:32]} Kb8 {[%emt 0:03:31]} 27. Nf1 {[%emt 0:00:08]} Ree8 {[%emt 0:08:36]} 28. Ne3 {[%emt 0:00:44]} Ka7 {[%emt 0:03:52]} 29. g4 {[%emt 0:01:50]} Nf8 {[%emt 0:02:39]} 30. Ned5 {[%emt 0:00:32]} Bxd5 {[%emt 0:01:15]} 31. cxd5 {[%emt 0:00:07]} Nd7 {[%emt 0:01:50]} 32. Bb5 {[%emt 0:00:42]} Re7 {[%emt 0:00:33]} 33. Re3 {[%emt 0:00:57]} Nb8 {[%emt 0:00:58]} 34. Qa4 {[%emt 0:00:55]} Ka8 {[%emt 0:02:43]} 35. Bc6+ {[%emt 0:00:33]} Nxc6 {[%emt 0:01:50]} 36. dxc6 {[%emt 0:00:04]} b5 {[%emt 0:07:30]} 37. Nxb5 {[%emt 0:00:05]} Qxc6 {[%emt 0:00:15]} 38. Ra3 {[%emt 0:00:01]} Rb7 {[%emt 0:08:36]} 39. Qxa6+ {[%emt 0:00:05]} Qxa6 {[%emt 0:00:05]} 40. Rxa6+ {[%emt 0:00:02]} Kb8 {[%emt 0:00:06]} 41. a4 {[%emt 0:00:03]} Kc8 {[%emt 0:01:48]} 42. Rd1 {[%emt 0:00:08]} f5 {[%emt 0:00:53]} 43. gxf5 {[%emt 0:00:23]} gxf5 {[%emt 0:00:02]} 44. exf5 {[%emt 0:00:34]} Bf6 {[%emt 0:01:12]} 45. Bg1 {[%emt 0:00:16]} Rbd7 {[%emt 0:00:36]} 46. Bxc5 {[%emt 0:00:20]} Be7 {[%emt 0:01:21]} 47. Bd4 {[%emt 0:00:05]} Nh6 {[%emt 0:00:20]} 48. f6 {[%emt 0:00:06]} Bf8 {[%emt 0:00:05]} 49. Rc1+ {[%emt 0:00:10]} Kb8 {[%emt 0:00:16]} 50. Rcc6 {[%emt 0:00:04]} Nf5 {[%emt 0:00:35]} 51. Ba7+ {[%emt 0:00:06]} Kb7 52. Rcb6+ {[%emt 0:00:03]} 1-0